fUST/lending_fUST_20251002
["ID","MTS","AMOUNT","RATE_DAILY","PERIOD"]
[388742392,1759344644119,-500.0,0.00022465,2]
[388742393,1759344644129,-545.4,0.00022465,2]
[388742394,1759344644138,-987.72,0.00022465,2]
[388742395,1759344644148,-500.0,0.00022465,2]
[388742396,1759344644157,-2410.9,0.00022465,2]
[388742397,1759344644168,-500.0,0.00022465,2]
[388742398,1759344644178,-500.0,0.00022465,2]
[388742399,1759344644187,-500.0,0.00022465,2]
[388742400,1759344644198,-151.0,0.00022465,7]
[388742401,1759344644207,-153.362474,0.00022465,7]
[388742402,1759344644216,-500.0,0.00022465,2]
[388742403,1759344644226,-557.1641434,0.00022465,2]
[388742404,1759344644235,-152.004238,0.00022465,7]
[388742405,1759344644244,-500.0,0.00022465,2]
[388742406,1759344644253,-710.18,0.00022465,2]
[388742407,1759344644262,-500.0,0.00022465,2]
[388742408,1759344644271,-773.86,0.00022465,2]
[388742409,1759344644279,-151.0,0.00022465,7]
[388742410,1759344644290,-371.29178964,0.00022465,2]
[388742411,1759344644299,-500.0,0.00022465,2]
[388742412,1759344644308,-154.20563,0.00022465,7]
[388742413,1759344644318,-154.20563,0.00022465,7]
[388742414,1759344644327,-154.20563,0.00022465,7]
[388742415,1759344644336,-500.0,0.00022465,2]
[388742416,1759344644351,-500.0,0.00022465,2]
[388742417,1759344644360,-154.20563,0.00022465,7]
[388742418,1759344644369,-151.0,0.00022465,7]
[388742419,1759344644378,-151.0,0.00022465,7]
[388742420,1759344644387,-151.0,0.00022465,7]
[388742421,1759344644396,-500.0,0.00022465,2]
[388742422,1759344644405,-2207.95,0.00022465,2]
[388742423,1759344644414,-1123.46,0.00022465,2]
[388742424,1759344644423,-679.61,0.00022465,2]
[388742425,1759344644432,-500.0,0.00022465,2]
[388742426,1759344644441,-525.78,0.00022465,2]
[388742427,1759344644451,-902.54,0.00022465,2]
[388742428,1759344644460,-500.0,0.00022465,2]
[388742429,1759344644469,-500.0,0.00022465,2]
[388742430,1759344644478,-151.0,0.00022465,2]
[388742431,1759344644487,-500.0,0.00022465,2]
[388742432,1759344644496,-594.28,0.00022465,2]
[388742433,1759344644506,-942.7,0.00022465,2]
[388742434,1759344644515,-653.46,0.00022465,2]
[388742435,1759344644524,-151.0,0.00022465,7]
[388742436,1759344644534,-151.0,0.00022465,7]
[388742437,1759344644544,-4000.0,0.000225,4]
[388742438,1759344644554,-300.0,0.0002259,2]
[388742439,1759344644563,-150.0,0.00022593,2]
[388742440,1759344644572,-2000.0,0.00022625,2]
[388742441,1759344644581,-151.0,0.00022644,7]
[388742442,1759344644590,-151.0,0.00022644,7]
[388742443,1759344644599,-151.0,0.00022644,7]
[388742444,1759344644608,-151.0,0.00022644,7]
[388742445,1759344644618,-151.0,0.00022644,7]
[388742446,1759344644627,-151.0,0.00022644,7]
[388742447,1759344644635,-154.450076,0.0002265,28]
[388742448,1759344644644,-168.0,0.00022735,2]
[388742449,1759344644654,-500.0,0.00022739,2]
[388742450,1759344644663,-500.0,0.00022739,2]
[388742451,1759344644672,-370.417,0.00022739,2]
[388742452,1759344644681,-500.0,0.00022739,2]
[388742453,1759344644690,-507.82,0.00022739,2]
[388742454,1759344644699,-500.0,0.00022739,2]
[388742455,1759344644708,-500.0,0.00022739,2]
[388742456,1759344644717,-545.4,0.00022739,2]
[388742457,1759344644727,-987.72,0.00022739,2]
[388742458,1759344644736,-200.20802242,0.00022739,2]
[388742459,1759344644745,-2410.9,0.00022739,2]
[388742460,1759344644755,-488.71337593,0.00022739,2]
[388742461,1759344644764,-304.81,0.00022739,2]
[388742462,1759344644774,-500.0,0.00022739,2]
[388742463,1759344644783,-500.0,0.00022739,2]
[388742464,1759344644792,-710.18,0.00022739,2]
[388742465,1759344644801,-500.0,0.00022739,2]
[388742466,1759344644810,-500.0,0.00022739,2]
[388742467,1759344644819,-773.86,0.00022739,2]
[388742468,1759344644828,-500.0,0.00022739,2]
[388742469,1759344644837,-500.0,0.00022739,2]
[388742470,1759344644846,-205.81,0.00022739,2]
[388742471,1759344644855,-355.73623822,0.00022739,2]
[388742472,1759344644864,-2207.95,0.00022739,2]
[388742473,1759344644873,-1123.46,0.00022739,2]
[388742474,1759344644882,-679.61,0.00022739,2]
[388742475,1759344644891,-500.0,0.00022739,2]
[388742476,1759344644901,-525.78,0.00022739,2]
[388742477,1759344644910,-902.54,0.00022739,2]
[388742478,1759344644919,-500.0,0.00022739,2]
[388742479,1759344644928,-500.0,0.00022739,2]
[388742480,1759344644938,-337.08693214,0.00022739,2]
[388742481,1759344644947,-594.28,0.00022739,2]
[388742482,1759344644956,-942.7,0.00022739,2]
[388742483,1759344644965,-653.46,0.00022739,2]
[388742484,1759344644975,-758.0,0.00022771,2]
[388742485,1759344644984,-546.0,0.00022771,2]
[388742486,1759344644993,-151.0,0.00022774,7]
[388742487,1759344645001,-660.0,0.00022855,2]
[388742488,1759344645010,-168.0,0.00022961,2]
[388742489,1759344645020,-168.0,0.0002297,2]
[388742490,1759344645030,-1200.0,0.00022992,2]
[388742491,1759344645040,-160.0,0.00023,2]
[388742492,1759344645048,-154.450076,0.00023007,3]
[388742493,1759344645057,-426.66339039,0.00023013,2]
[388742494,1759344645066,-500.0,0.00023013,2]
[388742495,1759344645075,-151.0,0.00023013,7]
[388742496,1759344645084,-151.0,0.00023013,7]
[388742497,1759344645094,-151.0,0.00023013,7]
[388742498,1759344645103,-151.0,0.00023013,7]
[388742499,1759344645112,-500.0,0.00023013,2]
[388742500,1759344645121,-507.82,0.00023013,2]
[388742501,1759344645131,-500.0,0.00023013,2]
[388742502,1759344645140,-500.0,0.00023013,2]
[388742503,1759344645149,-545.4,0.00023013,2]
[388742504,1759344645159,-987.72,0.00023013,2]
[388742505,1759344645169,-2410.9,0.00023013,2]
[388742506,1759344645179,-500.0,0.00023013,2]
[388742507,1759344645188,-500.0,0.00023013,2]
[388742508,1759344645197,-710.18,0.00023013,2]
[388742509,1759344645206,-500.0,0.00023013,2]
[388742510,1759344645215,-500.0,0.00023013,2]
[388742511,1759344645224,-773.86,0.00023013,2]
[388742512,1759344645233,-500.0,0.00023013,2]
[388742513,1759344645242,-500.0,0.00023013,2]
[388742514,1759344645251,-2207.95,0.00023013,2]
[388742515,1759344645260,-1123.46,0.00023013,2]
[388742516,1759344645269,-679.61,0.00023013,2]
[388742517,1759344645278,-359.81023813,0.00023013,2]
[388742518,1759344645287,-525.78,0.00023013,2]
[388742519,1759344645295,-902.54,0.00023013,2]
[388742520,1759344645304,-500.0,0.00023013,2]
[388742521,1759344645313,-500.0,0.00023013,2]
[388742522,1759344645322,-594.28,0.00023013,2]
[388742523,1759344645332,-942.7,0.00023013,2]
[388742524,1759344645341,-653.46,0.00023013,2]
[388742525,1759344645354,-154.450076,0.00023015,2]
[388742526,1759344645363,-154.450076,0.00023032,4]
[388742527,1759344645371,-154.450076,0.00023075,28]
[388742528,1759344645380,-150.0,0.00023093,2]
[388742529,1759344645388,-168.0,0.00023093,2]
[388742530,1759344645397,-571.51168981,0.000231,3]
[388742531,1759344645406,-150.0,0.00023131,2]
[388742532,1759344645415,-168.0,0.00023134,2]
[388742533,1759344645424,-168.0,0.00023135,2]
[388742534,1759344645433,-600.0,0.00023138,2]
[388742535,1759344645442,-2500.0,0.00023173,2]
[388742536,1759344645451,-500.0,0.00023209,2]
[388742537,1759344645460,-168.0,0.00023214,2]
[388742538,1759344645469,-168.0,0.00023234,2]
[388742539,1759344645479,-648.20735854,0.0002325,2]
[388742540,1759344645488,-168.0,0.00023264,2]
[388742541,1759344645497,-151.0,0.00023287,7]
[388742542,1759344645506,-500.0,0.00023287,2]
[388742543,1759344645515,-151.0,0.00023287,7]
[388742544,1759344645525,-560.05104979,0.00023287,2]
[388742545,1759344645535,-507.82,0.00023287,2]
[388742546,1759344645545,-500.0,0.00023287,2]
[388742547,1759344645553,-281.18554396,0.00023287,2]
[388742548,1759344645562,-649.76687262,0.00023287,2]
[388742549,1759344645571,-545.4,0.00023287,2]
[388742550,1759344645580,-987.72,0.00023287,2]
[388742551,1759344645590,-2410.9,0.00023287,2]
[388742552,1759344645599,-500.0,0.00023287,2]
[388742553,1759344645608,-500.0,0.00023287,2]
[388742554,1759344645617,-215.11073266,0.00023287,2]
[388742555,1759344645626,-710.18,0.00023287,2]
[388742556,1759344645636,-337.58,0.00023287,2]
[388742557,1759344645645,-773.86,0.00023287,2]
[388742558,1759344645654,-500.0,0.00023287,2]
[388742559,1759344645663,-500.0,0.00023287,2]
[388742560,1759344645672,-2207.95,0.00023287,2]
[388742561,1759344645681,-1123.46,0.00023287,2]
[388742562,1759344645691,-679.61,0.00023287,2]
[388742563,1759344645700,-525.78,0.00023287,2]
[388742564,1759344645710,-902.54,0.00023287,2]
[388742565,1759344645720,-500.0,0.00023287,2]
[388742566,1759344645728,-500.0,0.00023287,2]
[388742567,1759344645737,-594.28,0.00023287,2]
[388742568,1759344645746,-942.7,0.00023287,2]
[388742569,1759344645757,-653.46,0.00023287,2]
[388742570,1759344645765,-157.12631172,0.0002337,2]
[388742571,1759344645774,-168.0,0.00023391,2]
[388742572,1759344645783,-7562.6,0.000234,2]
[388742573,1759344645792,-760.0,0.00023403,2]
[388742574,1759344645801,-5000.0,0.00023403,2]
[388742575,1759344645810,-168.0,0.00023423,2]
[388742576,1759344645819,-1000.0,0.000235,2]
[388742577,1759344645827,-154.450076,0.000235,28]
[388742578,1759344645837,-168.0,0.00023507,2]
[388742579,1759344645846,-500.0,0.00023561,2]
[388742580,1759344645855,-507.82,0.00023561,2]
[388742581,1759344645864,-500.0,0.00023561,2]
[388742582,1759344645873,-545.4,0.00023561,2]
[388742583,1759344645882,-987.72,0.00023561,2]
[388742584,1759344645891,-2410.9,0.00023561,2]
[388742585,1759344645899,-500.0,0.00023561,2]
[388742586,1759344645909,-500.0,0.00023561,2]
[388742587,1759344645918,-710.18,0.00023561,2]
[388742588,1759344645927,-773.86,0.00023561,2]
[388742589,1759344645936,-500.0,0.00023561,2]
[388742590,1759344645945,-500.0,0.00023561,2]
[388742591,1759344645954,-2207.95,0.00023561,2]
[388742592,1759344645963,-1123.46,0.00023561,2]
[388742593,1759344645972,-679.61,0.00023561,2]
[388742594,1759344645981,-525.78,0.00023561,2]
[388742595,1759344645991,-902.54,0.00023561,2]
[388742596,1759344646000,-500.0,0.00023561,2]
[388742597,1759344646008,-500.0,0.00023561,2]
[388742598,1759344646018,-594.28,0.00023561,2]
[388742599,1759344646027,-942.7,0.00023561,2]
[388742600,1759344646036,-653.46,0.00023561,2]
[388742602,1759344646045,-150.0,0.00023593,2]
[388742603,1759344646054,-168.0,0.00023658,2]
[388742604,1759344646064,-864.0,0.00023667,20]
[388742605,1759344646073,-300.0,0.00023679,2]
[388742606,1759344646082,-900.0,0.00023686,2]
[388742607,1759344646091,-652.0,0.000237,2]
[388742608,1759344646100,-3000.0,0.00023721,2]
[388742609,1759344646109,-4000.0,0.0002375,4]
[388742610,1759344646119,-500.0,0.00023835,2]
[388742611,1759344646128,-507.82,0.00023835,2]
[388742612,1759344646138,-500.0,0.00023835,2]
[388742613,1759344646147,-545.4,0.00023835,2]
[388742614,1759344646156,-987.72,0.00023835,2]
[388742615,1759344646165,-2410.9,0.00023835,2]
[388742616,1759344646174,-500.0,0.00023835,2]
[388742617,1759344646183,-500.0,0.00023835,2]
[388742618,1759344646192,-710.18,0.00023835,2]
[388742619,1759344646201,-773.86,0.00023835,2]
[388742620,1759344646211,-500.0,0.00023835,2]
[388742621,1759344646220,-559.37,0.00023835,2]
[388742622,1759344646229,-2207.95,0.00023835,2]
[388742623,1759344646238,-1123.46,0.00023835,2]
[388742624,1759344646247,-679.61,0.00023835,2]
[388742625,1759344646256,-525.78,0.00023835,2]
[388742627,1759344646265,-902.54,0.00023835,2]
[388742628,1759344646274,-500.0,0.00023835,2]
[388742629,1759344646283,-500.0,0.00023835,2]
[388742630,1759344646292,-594.28,0.00023835,2]
[388742631,1759344646302,-942.7,0.00023835,2]
[388742632,1759344646310,-653.46,0.00023835,2]
[388742634,1759344646319,-209.0,0.00023863,11]
[388742635,1759344646330,-250.0,0.0002391,2]
[388742636,1759344646341,-860.0,0.00023951,2]
[388742637,1759344646355,-1712.43265204,0.00024,2]
[388742638,1759344646364,-163.4660248,0.00024,2]
[388742639,1759344646373,-459.15670068,0.00024,2]
[388742640,1759344646382,-154.450076,0.00024064,4]
[388742641,1759344646392,-150.0,0.00024093,2]
[388742642,1759344646403,-12500.0,0.00024109,7]
[388742643,1759344646414,-293.36416222,0.00024109,7]
[388742644,1759344646425,-160.0,0.00024109,7]
[388742645,1759344646434,-233.9640895,0.00024109,7]
[388742646,1759344646442,-500.0,0.00024109,2]
[388742647,1759344646451,-507.82,0.00024109,2]
[388742648,1759344646571,-500.0,0.00024109,2]
[388742649,1759344646580,-545.4,0.00024109,2]
[388742650,1759344646589,-987.72,0.00024109,2]
[388742651,1759344646598,-2410.9,0.00024109,2]
[388742652,1759344646607,-474.95257699,0.00024109,2]
[388742653,1759344646616,-513.80639644,0.00024109,2]
[388742654,1759344646625,-710.18,0.00024109,2]
[388742655,1759344646634,-200.0,0.00024109,2]
[388742656,1759344646643,-200.0,0.00024109,2]
[388742657,1759344646651,-200.0,0.00024109,2]
[388742658,1759344646660,-200.0,0.00024109,2]
[388742659,1759344646669,-200.0,0.00024109,2]
[388742660,1759344646678,-200.0,0.00024109,2]
[388742661,1759344646686,-183.2739459,0.00024109,2]
[388742662,1759344646696,-773.86,0.00024109,2]
[388742663,1759344646704,-500.0,0.00024109,2]
[388742664,1759344646713,-2207.95,0.00024109,2]
[388742665,1759344646722,-1123.46,0.00024109,2]
[388742666,1759344646730,-679.61,0.00024109,2]
[388742667,1759344646739,-525.78,0.00024109,2]
[388742668,1759344646748,-902.54,0.00024109,2]
[388742669,1759344646756,-366.94546102,0.00024109,2]
[388742670,1759344646765,-500.0,0.00024109,2]
[388742671,1759344646774,-594.28,0.00024109,2]
[388742672,1759344646783,-942.7,0.00024109,2]
[388742673,1759344646792,-653.46,0.00024109,2]
[388742674,1759344646801,-151.0,0.0002411,2]
[388742675,1759344646810,-151.0,0.0002411,2]
[388742676,1759344646820,-151.0,0.0002411,2]
[388742677,1759344646828,-151.0,0.0002411,2]
[388742678,1759344646837,-151.0,0.0002411,2]
[388742679,1759344646846,-151.0,0.0002411,2]
[388742680,1759344646856,-151.0,0.0002411,2]
[388742681,1759344646865,-151.0,0.0002411,2]
[388742682,1759344646874,-151.0,0.0002411,2]
[388742683,1759344646883,-151.0,0.0002411,2]
[388742684,1759344646892,-151.0,0.0002411,2]
[388742685,1759344646901,-294.98545417,0.0002411,2]
[388742686,1759344646910,-158.67951241,0.0002411,2]
[388742687,1759344646919,-151.0,0.0002411,2]
[388742688,1759344646927,-151.0,0.0002411,2]
[388742689,1759344646936,-151.0,0.0002411,2]
[388742690,1759344646946,-151.0,0.0002411,2]
[388742691,1759344646955,-151.0,0.0002411,2]
[388742692,1759344646963,-151.0,0.0002411,2]
[388742693,1759344646973,-151.0,0.0002411,2]
[388742694,1759344646982,-151.0,0.0002411,2]
[388742695,1759344646991,-242.46671906,0.0002411,2]
[388742696,1759344647000,-151.0,0.0002411,2]
[388742697,1759344647010,-151.0,0.0002411,2]
[388742698,1759344647019,-151.0,0.0002411,2]
[388742699,1759344647027,-500.0,0.0002411,2]
[388742700,1759344647036,-151.0,0.0002411,2]
[388742701,1759344647044,-160.0,0.000242,7]
[388742702,1759344647053,-160.0,0.000242,7]
[388742703,1759344647062,-450.0,0.00024227,2]
[388742704,1759344647071,-1200.0,0.00024234,2]
[388742705,1759344647079,-154.450076,0.00024256,3]
[388742706,1759344647088,-1485.56009375,0.00024269,2]
[388742707,1759344647097,-154.450076,0.00024275,7]
[388742708,1759344647105,-500.0,0.00024369,2]
[388742709,1759344647114,-500.0,0.00024383,2]
[388742710,1759344647123,-507.82,0.00024383,2]
[388742711,1759344647132,-500.0,0.00024383,2]
[388742712,1759344647141,-545.4,0.00024383,2]
[388742713,1759344647149,-987.72,0.00024383,2]
[388742714,1759344647158,-2410.9,0.00024383,2]
[388742715,1759344647167,-710.18,0.00024383,2]
[388742716,1759344647176,-773.86,0.00024383,2]
[388742717,1759344647185,-500.0,0.00024383,2]
[388742718,1759344647195,-2207.95,0.00024383,2]
[388742719,1759344647204,-1123.46,0.00024383,2]
[388742720,1759344647213,-679.61,0.00024383,2]
[388742721,1759344647221,-525.78,0.00024383,2]
[388742722,1759344647231,-902.54,0.00024383,2]
[388742723,1759344647239,-500.0,0.00024383,2]
[388742724,1759344647249,-594.28,0.00024383,2]
[388742725,1759344647258,-942.7,0.00024383,2]
[388742726,1759344647266,-653.46,0.00024383,2]
[388742727,1759344647275,-151.0,0.00024384,2]
[388742728,1759344647284,-151.0,0.00024384,2]
[388742729,1759344647293,-151.0,0.00024384,2]
[388742730,1759344647301,-151.0,0.00024384,2]
[388742731,1759344647310,-151.0,0.00024384,2]
[388742732,1759344647318,-151.0,0.00024384,2]
[388742733,1759344647327,-151.0,0.00024384,2]
[388742734,1759344647336,-151.0,0.00024384,2]
[388742735,1759344647348,-151.0,0.00024384,2]
[388742736,1759344647357,-151.0,0.00024384,2]
[388742737,1759344647366,-151.0,0.00024384,2]
[388742738,1759344647376,-151.0,0.00024384,2]
[388742739,1759344647385,-151.0,0.00024384,2]
[388742740,1759344647394,-151.0,0.00024384,2]
[388742741,1759344647402,-151.0,0.00024384,2]
[388742742,1759344647411,-151.0,0.00024384,2]
[388742743,1759344647419,-151.0,0.00024384,2]
[388742744,1759344647428,-500.0,0.00024384,2]
[388742745,1759344647436,-154.450076,0.00024387,2]
[388742746,1759344647445,-250.0,0.000244,2]
[388742747,1759344647454,-9546.36871387,0.000244,2]
[388742748,1759344647462,-960.0,0.00024499,2]
[388742749,1759344647471,-664.45100775,0.000245,2]
[388742750,1759344647479,-27078.83154986,0.000245,27]
[388742751,1759344647965,-52.85605685,0.00019178,2]
[388742752,1759344662217,300.0,0.00019077,2]
[388742761,1759344722239,300.0,0.00019077,2]
[388742764,1759344740961,1200.0,0.00019077,2]
[388742765,1759344752472,271.91719688,0.00019077,2]
[388742766,1759344752505,399.4995435,0.00019077,2]
[388742767,1759344753391,292.91812652,0.00019077,2]
[388742768,1759344753421,177.83472511,0.00019077,2]
[388742769,1759344753447,322.16527489,0.00019077,2]
[388742770,1759344753474,500.0,0.00019077,2]
[388742771,1759344753503,200.0,0.00019077,2]
[388742772,1759344753532,500.0,0.00019077,2]
[388742773,1759344753559,500.0,0.00019077,2]
[388742774,1759344753589,500.0,0.00019077,2]
[388742775,1759344753617,500.0,0.00019077,2]
[388742776,1759344753645,500.0,0.00019077,2]
[388742777,1759344753672,500.0,0.00019077,2]
[388742778,1759344753700,190.90573778,0.00019077,2]
[388742779,1759344753727,500.0,0.00019077,2]
[388742780,1759344753754,500.0,0.00019077,2]
[388742781,1759344753782,500.0,0.00019077,2]
[388742782,1759344753809,500.0,0.00019077,2]
[388742783,1759344753835,500.0,0.00019077,2]
[388742784,1759344753864,500.0,0.00019077,2]
[388742785,1759344753894,500.0,0.00019077,2]
[388742786,1759344753924,458.18556163,0.00019077,2]
[388742787,1759344753949,500.0,0.00019077,2]
[388742788,1759344753977,500.0,0.00019077,2]
[388742789,1759344754013,500.0,0.00019077,2]
[388742790,1759344754048,328.7534257,0.00019077,2]
[388742791,1759344754069,171.2465743,0.00019077,2]
[388742792,1759344754097,167.83167857,0.00019077,2]
[388742793,1759344754124,500.0,0.00019077,2]
[388742794,1759344754149,539.56,0.00019068,3]
[388742795,1759344754180,500.0,0.00019077,2]
[388742796,1759344757421,211.94809462,0.00019077,2]
[388742798,1759344775356,1000.0,0.00018652,2]
[388742799,1759344782855,300.0,0.00019077,2]
[388742800,1759344788003,2793.87150009,0.00019078,2]
[388742801,1759344810975,500.0,0.00027397,120]
[388742802,1759344836047,167.471281,9.082e-05,2]
[388742803,1759344837215,-242.92992191,0.00019078,2]
[388742804,1759344837240,-10000.01,0.00019078,2]
[388742805,1759344837304,-10000.01,0.00019078,2]
[388742806,1759344837460,-10000.01,0.00019078,2]
[388742807,1759344837595,-10000.01,0.00019078,2]
[388742808,1759344837723,-10000.01,0.00019078,2]
[388742809,1759344837826,-10000.01,0.00019078,2]
[388742810,1759344840381,-10000.01,0.00019078,2]
[388742811,1759344840488,-10000.01,0.00019078,2]
[388742812,1759344840743,-10000.01,0.00019078,2]
[388742813,1759344843697,-285.58106092,0.00019077,2]
[388742814,1759344844380,-14.41893908,0.00019077,2]
[388742815,1759344844415,-9971.17212184,0.00019078,2]
[388742816,1759344844498,-10000.01,0.00019078,2]
[388742817,1759344844708,-10000.01,0.00019078,2]
[388742818,1759344844826,-10000.01,0.00019078,2]
[388742819,1759344844931,-10000.01,0.00019078,2]
[388742820,1759344845047,-10000.01,0.00019078,2]
[388742821,1759344845190,-10000.01,0.00019078,2]
[388742822,1759344849074,1435.4993495,0.00019008,2]
[388742825,1759344852878,151.0,0.000178,2]
[388742826,1759344853142,151.0,0.000164,2]
[388742827,1759344856879,5000.0,0.00019078,2]
[388742829,1759344864978,3262.5106505,0.00019078,2]
[388742830,1759344865001,1737.4893495,0.00019078,2]
[388742832,1759344880249,5000.0,0.00019078,2]
[388742833,1759344888023,3262.5206505,0.00019078,2]
[388742834,1759344888045,1737.4793495,0.00019078,2]
[388742835,1759344901963,300.0,0.00019077,2]
[388742836,1759344902091,300.0,0.00019077,2]
[388742837,1759344906912,1200.0,0.00019077,2]
[388742838,1759344948930,595.46,0.00019068,3]
[388742839,1759344962496,300.0,0.00019077,2]
[388742844,1759345022631,300.0,0.00019077,2]
[388742847,1759345117889,500.0,0.00027397,120]
[388742849,1759345129157,-720.0,0.00021404,20]
[388742853,1759345210473,-720.0,0.00021404,20]
[388742855,1759345280930,1001.158031,0.00018157,2]
[388742858,1759345327772,194.300234,0.00018164,2]
[388742859,1759345341551,602.87907139,0.00019,2]
[388742860,1759345349835,-720.0,0.00021404,20]
[388742863,1759345423870,500.0,0.00027397,120]
[388742874,1759345623681,-4891.40062479,0.00019073,2]
[388742875,1759345623806,-217.20875042,0.00019073,2]
[388742876,1759345623835,-1200.0,0.00019075,2]
[388742877,1759345623863,-300.0,0.00019075,2]
[388742878,1759345623896,-1200.0,0.00019076,2]
[388742879,1759345623924,-300.0,0.00019076,2]
[388742881,1759345640982,1200.0,0.00019077,2]
[388742882,1759345642017,-4284.27940092,0.00019078,2]
[388742883,1759345642110,-10000.01,0.00019078,2]
[388742884,1759345642233,-10000.01,0.00019078,2]
[388742885,1759345642370,-10000.01,0.00019078,2]
[388742886,1759345642506,-10000.01,0.00019078,2]
[388742887,1759345642621,-10000.01,0.00019078,2]
[388742888,1759345642746,-10000.01,0.00019078,2]
[388742889,1759345642847,-10000.01,0.00019078,2]
[388742890,1759345645463,-10000.01,0.00019078,2]
[388742891,1759345645571,-10000.01,0.00019078,2]
[388742892,1759345647482,-10000.01,0.00019078,2]
[388742893,1759345647588,-10000.01,0.00019078,2]
[388742894,1759345647729,-10000.01,0.00019078,2]
[388742895,1759345647886,-10000.01,0.00019078,2]
[388742896,1759345647996,-10000.01,0.00019078,2]
[388742897,1759345648143,-10000.01,0.00019078,2]
[388742898,1759345648260,-10000.01,0.00019078,2]
[388742899,1759345648379,-10000.01,0.00019078,2]
[388742900,1759345680350,239.6,0.00016384,2]
[388742901,1759345680637,217.01,0.00016384,2]
[388742902,1759345682529,300.0,0.00019077,2]
[388742903,1759345729125,671.92519815,0.00027397,120]
[388742904,1759345742207,300.0,0.00019077,2]
[388742906,1759345802076,300.0,0.00019077,2]
[388742907,1759345802132,300.0,0.00019077,2]
[388742908,1759345806773,480.0,0.00019077,2]
[388742909,1759345812279,4086.88750016,0.00019078,2]
[388742911,1759345822184,151.0,0.00019078,2]
[388742912,1759345823427,152.39952855,0.00019078,2]
[388742933,1759345832014,-731.54943513,0.00019078,2]
[388742934,1759345832067,-1809.49332446,0.00019078,2]
[388742935,1759345832078,-850.00614396,0.00019078,2]
[388742936,1759345832089,-32110.24965178,0.00019078,2]
[388742937,1759345832098,-151.0,0.000191,2]
[388742938,1759345832107,-279.64968045,0.00019172,2]
[388742939,1759345832116,-190.34203781,0.00019172,2]
[388742940,1759345832124,-500.0,0.00019173,2]
[388742942,1759345832134,-500.0,0.00019173,2]
[388742944,1759345832142,-500.0,0.00019173,2]
[388742946,1759345832151,-500.0,0.00019173,2]
[388742948,1759345832161,-500.0,0.00019173,2]
[388742949,1759345832170,-500.0,0.00019173,2]
[388742950,1759345832179,-50000.0,0.00019173,2]
[388742951,1759345832188,-481.09810968,0.00019178,2]
[388742953,1759345832197,-214.41420306,0.00019178,2]
[388742955,1759345832207,-579.59901504,0.00019178,2]
[388742957,1759345832216,-480.0,0.00019178,2]
[388742959,1759345832226,-480.0,0.00019178,2]
[388742960,1759345832235,-480.0,0.00019178,2]
[388742962,1759345832243,-500.0,0.00019178,2]
[388742964,1759345832253,-215.99,0.00019178,2]
[388742965,1759345832263,-500.0,0.00019178,2]
[388742966,1759345832273,-500.0,0.00019178,2]
[388742968,1759345832282,-500.0,0.00019178,2]